fUSD/lending_fUSD_20260622
["ID","MTS","AMOUNT","RATE_DAILY","PERIOD"]
[425970588,1782061851000,-500.0,0.00014999,2]
[425970589,1782061851000,-500.0,0.00014999,2]
[425970592,1782061851000,-383.80814629,0.00014999,2]
[425970591,1782061851000,-500.0,0.00014999,2]
[425970593,1782061851000,-500.0,0.00014999,2]
[425970595,1782061851000,-500.0,0.00014999,2]
[425970594,1782061851000,-500.0,0.00014999,2]
[425970597,1782061851000,-500.0,0.00014999,2]
[425970599,1782061851000,-500.0,0.00014999,2]
[425970596,1782061851000,-500.0,0.00014999,2]
[425970598,1782061851000,-500.0,0.00014999,2]
[425970545,1782061851000,-500.0,0.00013698,2]
[425970590,1782061851000,-500.0,0.00014999,2]
[425970572,1782061851000,-16721.76127435,0.00014846,2]
[425970586,1782061851000,-502.37309747,0.00014999,2]
[425970569,1782061851000,-187.95,0.00014639,2]
[425970576,1782061851000,-1178.56611166,0.000149,2]
[425970551,1782061851000,-500.0,0.00013698,2]
[425970548,1782061851000,-500.0,0.00013698,2]
[425970546,1782061851000,-500.0,0.00013698,2]
[425970555,1782061851000,-352.16,0.00013699,2]
[425970547,1782061851000,-500.0,0.00013698,2]
[425970552,1782061851000,-500.0,0.00013698,2]
[425970553,1782061851000,-507.12,0.00013699,2]
[425970554,1782061851000,-422.6,0.00013699,2]
[425970557,1782061851000,-244.56,0.00013699,2]
[425970556,1782061851000,-293.47,0.00013699,2]
[425970558,1782061851000,-203.8,0.00013699,2]
[425970559,1782061851000,-169.83,0.00013699,2]
[425970549,1782061851000,-500.0,0.00013698,2]
[425970570,1782061851000,-600.0,0.000147,5]
[425970561,1782061851000,-200.0,0.00013699,2]
[425970562,1782061851000,-288.50393753,0.00013699,2]
[425970563,1782061851000,-458.49,0.00013864,2]
[425970560,1782061851000,-849.18,0.00013699,2]
[425970565,1782061851000,-1171.08,0.000139,2]
[425970564,1782061851000,-433.0,0.00013899,2]
[425970568,1782061851000,-171.25,0.00014558,2]
[425970578,1782061851000,-491.29301733,0.000149,2]
[425970577,1782061851000,-638.15965094,0.000149,2]
[425970567,1782061851000,-13949.04756009,0.00014299,2]
[425970566,1782061851000,-1326.237902,0.00014,2]
[425970638,1782061852000,-352.33917737,0.00015,2]
[425970633,1782061852000,-2275004.36568654,0.00015,2]
[425970628,1782061852000,-500.0,0.00014999,2]
[425970636,1782061852000,-8112.79712964,0.00015,2]
[425970631,1782061852000,-500.0,0.00014999,2]
[425970630,1782061852000,-503.0319682,0.00014999,2]
[425970627,1782061852000,-500.0,0.00014999,2]
[425970634,1782061852000,-2084.19713523,0.00015,2]
[425970635,1782061852000,-748.11,0.00015,2]
[425970637,1782061852000,-680883.78013109,0.00015,2]
[425970632,1782061852000,-171.0,0.00014999,2]
[425970640,1782061852000,-151.0,0.00015,2]
[425970643,1782061852000,-174.35791562,0.00015,2]
[425970641,1782061852000,-151.0,0.00015,2]
[425970642,1782061852000,-171.0,0.00015,2]
[425970646,1782061852000,-151.0,0.00015068,2]
[425970645,1782061852000,-151.0,0.00015068,2]
[425970644,1782061852000,-150.0,0.00015068,2]
[425970658,1782061852000,-212.539835,0.00016109,2]
[425970648,1782061852000,-232.88,0.00015068,2]
[425970647,1782061852000,-151.0,0.00015068,2]
[425970649,1782061852000,-553.0,0.00015181,2]
[425970651,1782061852000,-1500.0,0.00015369,2]
[425970655,1782061852000,-187.95,0.0001597,2]
[425970639,1782061852000,-152.28869,0.00015,2]
[425970626,1782061852000,-500.0,0.00014999,2]
[425970650,1782061852000,-13949.04756009,0.00015233,2]
[425970623,1782061852000,-500.0,0.00014999,2]
[425970600,1782061852000,-500.0,0.00014999,2]
[425970601,1782061852000,-500.0,0.00014999,2]
[425970602,1782061852000,-500.0,0.00014999,2]
[425970607,1782061852000,-500.0,0.00014999,2]
[425970610,1782061852000,-500.0,0.00014999,2]
[425970604,1782061852000,-500.0,0.00014999,2]
[425970608,1782061852000,-500.0,0.00014999,2]
[425970611,1782061852000,-500.0,0.00014999,2]
[425970609,1782061852000,-500.0,0.00014999,2]
[425970603,1782061852000,-334.16489871,0.00014999,2]
[425970605,1782061852000,-500.0,0.00014999,2]
[425970612,1782061852000,-500.0,0.00014999,2]
[425970606,1782061852000,-500.0,0.00014999,2]
[425970614,1782061852000,-500.0,0.00014999,2]
[425970625,1782061852000,-500.0,0.00014999,2]
[425970624,1782061852000,-500.0,0.00014999,2]
[425970613,1782061852000,-500.0,0.00014999,2]
[425970615,1782061852000,-500.0,0.00014999,2]
[425970618,1782061852000,-500.0,0.00014999,2]
[425970620,1782061852000,-500.0,0.00014999,2]
[425970619,1782061852000,-500.0,0.00014999,2]
[425970622,1782061852000,-500.0,0.00014999,2]
[425970617,1782061852000,-500.0,0.00014999,2]
[425970621,1782061852000,-399.59670908,0.00014999,2]
[425970616,1782061852000,-500.0,0.00014999,2]
[425970629,1782061852000,-500.0,0.00014999,2]
[425970653,1782061852000,-458.49,0.00015597,2]
[425970661,1782061852000,-16721.76127435,0.00016192,2]
[425970652,1782061852000,-2881.1848598,0.00015555,2]
[425970684,1782061852000,-500.0,0.00016438,2]
[425970688,1782061852000,-559.28001844,0.00016438,2]
[425970685,1782061852000,-500.0,0.00016438,2]
[425970686,1782061852000,-500.0,0.00016438,2]
[425970690,1782061852000,-559.28001844,0.00016438,2]
[425970691,1782061852000,-559.28001844,0.00016438,2]
[425970692,1782061852000,-559.28001844,0.00016438,2]
[425970693,1782061852000,-559.28001844,0.00016438,2]
[425970695,1782061852000,-559.28001844,0.00016438,2]
[425970696,1782061852000,-559.28001844,0.00016438,2]
[425970694,1782061852000,-559.28001844,0.00016438,2]
[425970689,1782061852000,-559.28001844,0.00016438,2]
[425970697,1782061852000,-559.28001844,0.00016438,2]
[425970699,1782061852000,-559.28001844,0.00016438,2]
[425970700,1782061852000,-559.28001844,0.00016438,2]
[425970701,1782061852000,-559.28001844,0.00016438,2]
[425970705,1782061852000,-559.28001844,0.00016438,2]
[425970703,1782061852000,-559.28001844,0.00016438,2]
[425970702,1782061852000,-559.28001844,0.00016438,2]
[425970706,1782061852000,-559.28001844,0.00016438,2]
[425970704,1782061852000,-559.28001844,0.00016438,2]
[425970710,1782061852000,-559.28001844,0.00016438,2]
[425970708,1782061852000,-559.28001844,0.00016438,2]
[425970656,1782061852000,-1418.62,0.0001601,2]
[425970698,1782061852000,-559.28001844,0.00016438,2]
[425970682,1782061852000,-500.0,0.00016438,2]
[425970707,1782061852000,-559.28001844,0.00016438,2]
[425970687,1782061852000,-500.0,0.00016438,2]
[425970681,1782061852000,-500.0,0.00016438,2]
[425970654,1782061852000,-1555.5,0.00015917,2]
[425970659,1782061852000,-215.449231,0.00016109,2]
[425970663,1782061852000,-331.65,0.00016353,2]
[425970664,1782061852000,-500.0,0.00016437,2]
[425970709,1782061852000,-559.28001844,0.00016438,2]
[425970660,1782061852000,-13949.04756009,0.00016166,2]
[425970665,1782061852000,-208.8,0.00016438,2]
[425970666,1782061852000,-500.0,0.00016438,2]
[425970662,1782061852000,-200.0,0.0001634,2]
[425970667,1782061852000,-500.0,0.00016438,2]
[425970668,1782061852000,-500.0,0.00016438,2]
[425970657,1782061852000,-171.25,0.00016014,2]
[425970669,1782061852000,-500.0,0.00016438,2]
[425970670,1782061852000,-500.0,0.00016438,2]
[425970680,1782061852000,-500.0,0.00016438,2]
[425970677,1782061852000,-500.0,0.00016438,2]
[425970676,1782061852000,-500.0,0.00016438,2]
[425970673,1782061852000,-500.0,0.00016438,2]
[425970683,1782061852000,-500.0,0.00016438,2]
[425970674,1782061852000,-255.00000001,0.00016438,2]
[425970671,1782061852000,-500.0,0.00016438,2]
[425970672,1782061852000,-500.0,0.00016438,2]
[425970679,1782061852000,-500.0,0.00016438,2]
[425970678,1782061852000,-500.0,0.00016438,2]
[425970675,1782061852000,-500.0,0.00016438,2]
[425970737,1782061853000,-556.33643939,0.00016438,2]
[425970746,1782061853000,-556.33643939,0.00016438,2]
[425970738,1782061853000,-556.33643939,0.00016438,2]
[425970740,1782061853000,-556.33643939,0.00016438,2]
[425970742,1782061853000,-556.33643939,0.00016438,2]
[425970741,1782061853000,-556.33643939,0.00016438,2]
[425970745,1782061853000,-556.33643939,0.00016438,2]
[425970744,1782061853000,-556.33643939,0.00016438,2]
[425970743,1782061853000,-556.33643939,0.00016438,2]
[425970735,1782061853000,-556.33643939,0.00016438,2]
[425970753,1782061853000,-556.33643939,0.00016438,2]
[425970750,1782061853000,-556.33643939,0.00016438,2]
[425970754,1782061853000,-151.000008,0.00016438,2]
[425970756,1782061853000,-151.0,0.00016438,2]
[425970747,1782061853000,-556.33643939,0.00016438,2]
[425970757,1782061853000,-153.164862,0.00016438,2]
[425970748,1782061853000,-556.33643939,0.00016438,2]
[425970749,1782061853000,-556.33643939,0.00016438,2]
[425970752,1782061853000,-556.33643939,0.00016438,2]
[425970755,1782061853000,-151.0,0.00016438,2]
[425970739,1782061853000,-556.33643939,0.00016438,2]
[425970759,1782061853000,-151.0,0.00016438,2]
[425970751,1782061853000,-556.33643939,0.00016438,2]
[425970734,1782061853000,-559.28001844,0.00016438,2]
[425970721,1782061853000,-559.28001844,0.00016438,2]
[425970733,1782061853000,-559.28001844,0.00016438,2]
[425970768,1782061853000,-638.15965093,0.00017233,2]
[425970712,1782061853000,-559.28001844,0.00016438,2]
[425970711,1782061853000,-559.28001844,0.00016438,2]
[425970714,1782061853000,-559.28001844,0.00016438,2]
[425970713,1782061853000,-559.28001844,0.00016438,2]
[425970716,1782061853000,-559.28001844,0.00016438,2]
[425970719,1782061853000,-559.28001844,0.00016438,2]
[425970723,1782061853000,-559.28001844,0.00016438,2]
[425970715,1782061853000,-559.28001844,0.00016438,2]
[425970720,1782061853000,-559.28001844,0.00016438,2]
[425970736,1782061853000,-556.33643939,0.00016438,2]
[425970717,1782061853000,-559.28001844,0.00016438,2]
[425970722,1782061853000,-559.28001844,0.00016438,2]
[425970724,1782061853000,-559.28001844,0.00016438,2]
[425970726,1782061853000,-559.28001844,0.00016438,2]
[425970725,1782061853000,-559.28001844,0.00016438,2]
[425970730,1782061853000,-559.28001844,0.00016438,2]
[425970728,1782061853000,-559.28001844,0.00016438,2]
[425970727,1782061853000,-559.28001844,0.00016438,2]
[425970729,1782061853000,-559.28001844,0.00016438,2]
[425970731,1782061853000,-559.28001844,0.00016438,2]
[425970732,1782061853000,-559.28001844,0.00016438,2]
[425970718,1782061853000,-559.28001844,0.00016438,2]
[425970769,1782061853000,-458.49,0.0001733,2]
[425970762,1782061853000,-527.71,0.00016734,2]
[425970760,1782061853000,-1613.0535,0.00016465,2]
[425970787,1782061853000,-150.0,0.000186,7]
[425970788,1782061853000,-1865.36488656,0.00018657,2]
[425970790,1782061853000,-748.11,0.000187,2]
[425970793,1782061853000,-593.773342,0.000189,2]
[425970795,1782061853000,-13949.04756009,0.00018967,2]
[425970796,1782061853000,-593.773342,0.00019,2]
[425970804,1782061853000,-593.773342,0.000194,2]
[425970801,1782061853000,-7592.70940171,0.000192,2]
[425970794,1782061853000,-7592.70940171,0.000189,2]
[425970800,1782061853000,-593.773342,0.000192,2]
[425970802,1782061853000,-1934.38338736,0.00019205,2]
[425970799,1782061853000,-458.49,0.00019063,2]
[425970797,1782061853000,-7592.70940171,0.00019,2]
[425970803,1782061853000,-367.43,0.00019339,2]
[425970798,1782061853000,-158.0,0.0001905,2]
[425970806,1782061853000,-2881.1848598,0.00019469,2]
[425970808,1782061853000,-3560.0,0.00019579,2]
[425970805,1782061853000,-7592.70940171,0.000194,2]
[425970758,1782061853000,-151.0,0.00016438,2]
[425970809,1782061853000,-1364.702,0.00019579,2]
[425970810,1782061853000,-1287.027,0.00019579,2]
[425970811,1782061853000,-383.0,0.00019579,2]
[425970812,1782061853000,-1231.662,0.00019579,2]
[425970791,1782061853000,-7592.70940171,0.000187,2]
[425970789,1782061853000,-593.773342,0.000187,2]
[425970807,1782061853000,-638.15965093,0.00019567,2]
[425970782,1782061853000,-2245.05,0.00018356,2]
[425970783,1782061853000,-208.8,0.0001841,2]
[425970763,1782061853000,-2478.0,0.00016955,5]
[425970761,1782061853000,-1000.0,0.000165,2]
[425970765,1782061853000,-500.0,0.00016999,2]
[425970767,1782061853000,-13949.04756009,0.000171,2]
[425970766,1782061853000,-1672.7364795,0.00017013,2]
[425970770,1782061853000,-344.83505209,0.00017442,2]
[425970780,1782061853000,-1798.80895522,0.00018109,2]
[425970778,1782061853000,-13949.04756009,0.00018033,2]
[425970772,1782061853000,-2881.1848598,0.00017512,2]
[425970779,1782061853000,-154.0,0.0001805,2]
[425970764,1782061853000,-2000.0,0.00016999,2]
[425970771,1782061853000,-171.25,0.0001747,2]
[425970774,1782061853000,-1734.62772924,0.00017561,2]
[425970792,1782061853000,-16721.76127435,0.00018886,2]
[425970785,1782061853000,-256.70248179,0.00018522,2]
[425970784,1782061853000,-151.0,0.00018522,2]
[425970786,1782061853000,-527.71,0.00018571,2]
[425970777,1782061853000,-1418.62,0.00018011,2]
[425970773,1782061853000,-16721.76127435,0.00017539,2]
[425970775,1782061853000,-159.74811645,0.0001771,2]
[425970776,1782061853000,-1058.60677044,0.00018,2]
[425970781,1782061853000,-271.866889,0.00018195,2]
[425970834,1782061854000,-163.92815353,0.0002,14]
[425970837,1782061854000,-190.66868644,0.0002,2]
[425970841,1782061854000,-174.0,0.0002,2]
[425970835,1782061854000,-190.66868644,0.0002,2]
[425970836,1782061854000,-190.66868644,0.0002,2]
[425970840,1782061854000,-161.0,0.0002,2]
[425970842,1782061854000,-155.0,0.0002,2]
[425970843,1782061854000,-405.0,0.0002,2]
[425970845,1782061854000,-169.0,0.0002,2]
[425970850,1782061854000,-151.0,0.0002,2]
[425970849,1782061854000,-151.0,0.0002,2]
[425970851,1782061854000,-184.0,0.0002,2]
[425970846,1782061854000,-528.0,0.0002,2]
[425970847,1782061854000,-648.0,0.0002,2]
[425970853,1782061854000,-151.0,0.0002,2]
[425970863,1782061854000,-319.0,0.0002,2]
[425970838,1782061854000,-190.66868644,0.0002,2]
[425970852,1782061854000,-14633.35,0.0002,2]
[425970844,1782061854000,-479.0,0.0002,2]
[425970833,1782061854000,-7592.70940171,0.0002,2]
[425970822,1782061854000,-7592.70940171,0.000198,2]
[425970831,1782061854000,-241.6588648,0.0002,2]
[425970854,1782061854000,-151.0,0.0002,2]
[425970813,1782061854000,-3647.0,0.00019579,2]
[425970815,1782061854000,-7592.70940171,0.000196,2]
[425970814,1782061854000,-6081.0,0.00019579,2]
[425970817,1782061854000,-2382.96848759,0.00019718,2]
[425970818,1782061854000,-4203.83887438,0.00019718,2]
[425970816,1782061854000,-902.97620353,0.00019718,2]
[425970827,1782061854000,-500.0,0.00019999,2]
[425970823,1782061854000,-13949.04756009,0.000199,2]
[425970825,1782061854000,-17710.44466581,0.0001995,15]
[425970819,1782061854000,-2005.9555727,0.00019753,2]
[425970820,1782061854000,-429.70900624,0.000198,2]
[425970826,1782061854000,-500.0,0.00019999,2]
[425970824,1782061854000,-8367.99802005,0.00019921,2]
[425970821,1782061854000,-500.0,0.000198,2]
[425970829,1782061854000,-295.901505,0.0002,2]
[425970828,1782061854000,-3719.48,0.0002,2]
[425970830,1782061854000,-1971.0,0.0002,2]
[425970839,1782061854000,-190.66868648,0.0002,2]
[425970832,1782061854000,-100000.0,0.0002,2]
[425970859,1782061854000,-150.0,0.0002,7]
[425970848,1782061854000,-151.0,0.0002,2]
[425970855,1782061854000,-2000.0,0.0002,7]
[425970886,1782061854000,-151.0,0.00020301,2]
[425970888,1782061854000,-173.76889968,0.00020301,2]
[425970887,1782061854000,-251.43667497,0.00020301,2]
[425970876,1782061854000,-316.0,0.00020236,2]
[425970885,1782061854000,-1148.61238259,0.00020301,2]
[425970880,1782061854000,-1068.11,0.00020301,2]
[425970883,1782061854000,-151.0,0.00020301,2]
[425970889,1782061854000,-165.29683498,0.00020301,2]
[425970891,1782061854000,-1191.11104074,0.00020301,2]
[425970890,1782061854000,-151.0,0.00020301,2]
[425970893,1782061854000,-578.20924308,0.00020301,2]
[425970894,1782061854000,-1235.18214925,0.00020301,2]
[425970899,1782061854000,-151.0,0.00020301,2]
[425970895,1782061854000,-151.0,0.00020301,2]
[425970896,1782061854000,-1280.88388877,0.00020301,2]
[425970897,1782061854000,-151.0,0.00020301,2]
[425970898,1782061854000,-1328.27659266,0.00020301,2]
[425970900,1782061854000,-1377.42282658,0.00020301,2]
[425970856,1782061854000,-151.0,0.0002,2]
[425970881,1782061854000,-151.0,0.00020301,2]
[425970884,1782061854000,-174.61919141,0.00020301,2]
[425970892,1782061854000,-209.40437684,0.00020301,2]
[425970878,1782061854000,-1030.0,0.00020301,2]
[425970861,1782061854000,-319.0,0.0002,2]
[425970882,1782061854000,-1107.63007,0.00020301,2]
[425970858,1782061854000,-316.0,0.0002,2]
[425970857,1782061854000,-151.0,0.0002,2]
[425970862,1782061854000,-408.0,0.0002,2]
[425970864,1782061854000,-320.0,0.00020002,2]
[425970866,1782061854000,-315.0,0.00020009,2]
[425970868,1782061854000,-1418.62,0.00020013,2]
[425970871,1782061854000,-319.0,0.00020045,2]
[425970860,1782061854000,-320.0,0.0002,2]
[425970869,1782061854000,-401.0,0.00020016,2]
[425970865,1782061854000,-406.0,0.00020003,2]
[425970870,1782061854000,-216.32317309,0.0002002,2]
[425970873,1782061854000,-7592.70940171,0.000202,2]
[425970874,1782061854000,-16721.76127435,0.00020232,2]
[425970875,1782061854000,-314.0,0.00020236,2]
[425970872,1782061854000,-241.6588648,0.000202,2]
[425970867,1782061854000,-321.0,0.00020009,2]
[425970877,1782061854000,-500.0,0.00020301,2]
[425970879,1782061854000,-151.0,0.00020301,2]
[425970936,1782061855000,-151.0,0.00020301,2]
[425970947,1782061855000,-500.0,0.00020301,2]
[425970938,1782061855000,-2080.17592889,0.00020301,2]
[425970935,1782061855000,-209.40437684,0.00020301,2]
[425970937,1782061855000,-500.0,0.00020301,2]
[425970930,1782061855000,-151.0,0.00020301,2]
[425970934,1782061855000,-500.0,0.00020301,2]
[425970932,1782061855000,-151.0,0.00020301,2]
[425970933,1782061855000,-500.0,0.00020301,2]
[425970949,1782061855000,-151.0,0.00020301,2]
[425970929,1782061855000,-500.0,0.00020301,2]
[425970950,1782061855000,-151.0,0.00020301,2]
[425970951,1782061855000,-151.0,0.00020301,2]
[425970939,1782061855000,-151.0,0.00020301,2]
[425970940,1782061855000,-151.0,0.00020301,2]
[425970942,1782061855000,-500.0,0.00020301,2]
[425970943,1782061855000,-500.0,0.00020301,2]
[425970941,1782061855000,-500.0,0.00020301,2]
[425970946,1782061855000,-500.0,0.00020301,2]
[425970944,1782061855000,-151.0,0.00020301,2]
[425970961,1782061855000,-241.6588648,0.000204,2]
[425970953,1782061855000,-151.0,0.00020301,2]
[425970952,1782061855000,-151.0,0.00020301,2]
[425970931,1782061855000,-152.0,0.00020301,2]
[425970948,1782061855000,-151.0,0.00020301,2]
[425970927,1782061855000,-151.0,0.00020301,2]
[425970907,1782061855000,-500.0,0.00020301,2]
[425970922,1782061855000,-151.0,0.00020301,2]
[425970904,1782061855000,-1481.2378076,0.00020301,2]
[425970901,1782061855000,-1428.38747117,0.00020301,2]
[425970903,1782061855000,-500.0,0.00020301,2]
[425970902,1782061855000,-151.0,0.00020301,2]
[425970906,1782061855000,-151.0,0.00020301,2]
[425970905,1782061855000,-721.12765534,0.00020301,2]
[425970954,1782061855000,-151.0,0.00020301,2]
[425970909,1782061855000,-500.0,0.00020301,2]
[425970910,1782061855000,-151.0,0.00020301,2]
[425970908,1782061855000,-1536.04360648,0.00020301,2]
[425970913,1782061855000,-209.40437684,0.00020301,2]
[425970912,1782061855000,-151.0,0.00020301,2]
[425970915,1782061855000,-209.40437684,0.00020301,2]
[425970914,1782061855000,-500.0,0.00020301,2]
[425970911,1782061855000,-1592.87721992,0.00020301,2]
[425970916,1782061855000,-501.38597833,0.00020301,2]
[425970917,1782061855000,-500.0,0.00020301,2]
[425970918,1782061855000,-284.47766903,0.00020301,2]
[425970920,1782061855000,-151.0,0.00020301,2]
[425970921,1782061855000,-152.0,0.00020301,2]
[425970923,1782061855000,-500.0,0.00020301,2]
[425970919,1782061855000,-151.0,0.00020301,2]
[425970924,1782061855000,-500.0,0.00020301,2]
[425970926,1782061855000,-152.0,0.00020301,2]
[425970925,1782061855000,-151.0,0.00020301,2]
[425970928,1782061855000,-500.0,0.00020301,2]
[425970956,1782061855000,-151.0,0.00020301,2]
[425970945,1782061855000,-151.0,0.00020301,2]
[425970957,1782061855000,-173.76889968,0.00020356,2]
[425970990,1782061855000,-501.38597833,0.00020849,2]
[425970991,1782061855000,-217.15233878,0.00020849,2]
[425970993,1782061855000,-173.76889973,0.00020851,2]
[425970995,1782061855000,-174.0,0.00021,2]
[425970986,1782061855000,-217.15233878,0.00020849,2]
[425970992,1782061855000,-2157.14243826,0.00020849,2]
[425970994,1782061855000,-161.0,0.00021,2]
[425970997,1782061855000,-405.0,0.00021,2]
[425970996,1782061855000,-156.43207842,0.00021,2]
[425970999,1782061855000,-169.0,0.00021,2]
[425970998,1782061855000,-479.0,0.00021,2]
[425971000,1782061855000,-528.0,0.00021,2]
[425971001,1782061855000,-648.0,0.00021,2]
[425971006,1782061855000,-500.0,0.00021212,2]
[425971003,1782061855000,-500.0,0.00021212,2]
[425971005,1782061855000,-500.0,0.00021212,2]
[425971002,1782061855000,-184.0,0.00021,2]
[425971004,1782061855000,-500.0,0.00021212,2]
[425971007,1782061855000,-500.0,0.00021212,2]
[425971008,1782061855000,-500.0,0.00021212,2]
[425971010,1782061855000,-500.0,0.00021212,2]
[425971009,1782061855000,-500.0,0.00021212,2]
[425971012,1782061855000,-500.0,0.00021212,2]
[425971011,1782061855000,-500.0,0.00021212,2]
[425970955,1782061855000,-151.0,0.00020301,2]
[425970988,1782061855000,-209.05292702,0.00020849,2]
[425970985,1782061855000,-165.29683498,0.00020849,2]
[425970989,1782061855000,-217.15233878,0.00020849,2]
[425970968,1782061855000,-173.76889968,0.00020521,2]
[425970958,1782061855000,-275.01256262,0.00020356,2]
[425970959,1782061855000,-208.8,0.00020381,2]
[425970962,1782061855000,-7592.70940171,0.000204,2]
[425970963,1782061855000,-527.71,0.00020407,2]
[425970972,1782061855000,-150.0,0.0002058,2]
[425970964,1782061855000,-173.76889968,0.00020411,2]
[425970967,1782061855000,-173.76889968,0.00020466,2]
[425970965,1782061855000,-410.0,0.00020421,2]
[425970966,1782061855000,-491.29301731,0.00020442,2]
[425970971,1782061855000,-150.0,0.0002058,2]
[425970987,1782061855000,-151.0,0.00020849,2]
[425970969,1782061855000,-173.76889968,0.00020576,2]
[425970970,1782061855000,-150.0,0.0002058,2]
[425970984,1782061855000,-251.43667497,0.00020849,2]
[425970974,1782061855000,-187.42159584,0.0002058,2]
[425970973,1782061855000,-150.0,0.0002058,2]
[425970983,1782061855000,-181.08010149,0.00020849,2]
[425970976,1782061855000,-173.76889968,0.00020631,2]
[425970975,1782061855000,-241.6588648,0.000206,2]
[425970977,1782061855000,-173.76889968,0.00020686,2]
[425970979,1782061855000,-173.76889968,0.00020741,2]
[425970981,1782061855000,-173.76889968,0.00020796,2]
[425970978,1782061855000,-748.11,0.000207,2]
[425970980,1782061855000,-458.49,0.00020796,2]
[425970982,1782061855000,-241.6588648,0.000208,2]
[425970960,1782061855000,-500.0,0.00020384,2]
[425971014,1782061856000,-314.0,0.00021235,2]
[425971015,1782061856000,-6117.35569098,0.00021273,2]
[425971013,1782061856000,-41967.8812,0.00021212,2]
[425971016,1782061856000,-520.72,0.00010955,2]
[425971022,1782061856000,-165.75583721,0.00021273,2]
[425971018,1782061856000,-520.72,0.00010972,2]
[425971019,1782061856000,-228.16132006,0.00010982,2]
[425971020,1782061856000,-292.55867994,0.00010982,2]
[425971021,1782061856000,-520.72,0.00010993,2]
[425971017,1782061856000,-520.72,0.00010963,2]
[425971026,1782061857000,-1020.05435663,0.0002137,2]
[425971025,1782061857000,-2450.81408641,0.00021273,2]
[425971024,1782061857000,-454.06146859,0.00021273,2]
[425971023,1782061857000,-2034.10291681,0.00021273,2]
[425971057,1782061864000,-165.29683498,0.00021945,2]
[425971056,1782061864000,-251.43667497,0.00021945,2]
[425971062,1782061864000,-2319.72410669,0.00021945,2]
[425971047,1782061864000,-164.62217468,0.00021819,2]
[425971052,1782061864000,-200.0,0.00021918,2]
[425971061,1782061864000,-233.5188934,0.00021945,2]
[425971054,1782061864000,-500.0,0.00021945,2]
[425971060,1782061864000,-501.38597833,0.00021945,2]
[425971058,1782061864000,-233.5188934,0.00021945,2]
[425971055,1782061864000,-194.72792766,0.00021945,2]
[425971059,1782061864000,-151.0,0.00021945,2]
[425971053,1782061864000,-200.0,0.00021943,2]
[425971042,1782061864000,-225.18697532,0.00021397,2]
[425971068,1782061864000,-528.0,0.00022,2]
[425971069,1782061864000,-648.0,0.00022,2]
[425971064,1782061864000,-174.0,0.00022,2]
[425971067,1782061864000,-169.0,0.00022,2]
[425971065,1782061864000,-405.0,0.00022,2]
[425971070,1782061864000,-184.0,0.00022,2]
[425971051,1782061864000,-166.0,0.00021918,2]
[425971041,1782061864000,-501.38597833,0.00021397,2]
[425971044,1782061864000,-2881.1848598,0.00021426,2]
[425971045,1782061864000,-16721.76127435,0.00021579,2]
[425971027,1782061864000,-520.72,0.00011005,2]
[425971030,1782061864000,-160.0,0.00013227,2]
[425971028,1782061864000,-520.72,0.00011018,2]
[425971029,1782061864000,-520.72,0.00011032,2]
[425971036,1782061864000,-251.43667497,0.00021397,2]
[425971031,1782061864000,-934.0,0.00019579,2]
[425971033,1782061864000,-196.75171301,0.00021373,2]
[425971038,1782061864000,-225.18697532,0.00021397,2]